{"text_format":"1","workbook":"xlsx","n_sheets":21,"sheets":["Référentiels produits","Accueil produits","Création produits","BD produits","Modification produits","Référentiels menus","Accueil menus","Saisie MMR","Menus MMR","Modifier MMR","Saisie MJ","Menus MJ","Modifier MJ","Saisie menus VMWE","Menus VMWE","Modifier VMWE","BD menus","Quantités desserts","Quantités légumes","Quantités viandes","Jours féries"],"not_rendered":{"charts":0,"images":3,"macros":1,"external_links":0,"defined_names":60,"comments":1,"pivot_tables":0},"unopened":[],"bounds":{"document_bytes":16777216,"sheet_cells":100000,"rows_first":2000,"rows_last":500,"rows_between":2000,"halvings":0,"cell_chars":16384,"cell_head_chars":4096},"cells_cut":0,"cells_raw":0,"read":"whole","date_system":"1900"}

{"sheet":"Référentiels produits","index":0,"n_rows":34,"n_cols":50,"rows_kept":34,"cut":false,"hidden":false,"merged":[]}
["Catégorie","Destination","Nature",null,"Jours",null,"Code DMR","Nom DMR",null,"Code DS","Nom DS",null,"Code DWE","Nom DWE",null,"Code LMR","Nom LMR",null,"Code LSLM","Nom LSLM",null,"Code LSMJ","Nom LSMJ",null,"Code LSV","Nom LSV",null,"Code LWED","Nom LWED",null,"Code LWES","Nom LWES",null,"Code VMR","Nom VMR",null,"Code VMWE","Nom VMWE",null,"Code VS","Nom VS",null,"Conditionnement",null,"Nom jour",null,"Mois",null,"Code  férié","Nom fériés"]
["DMR","Aliments midi retraite","Aliments midi retraite dessert",null,"Dimanche midi",null,"DMR01","Pomme",null,"DS01","Pomme",null,"DWE01","Ananas",null,"LMR01","Asperges",null,"LSLM01","Cassoulet",null,"LSMJ01","Macédoine de légumes",null,"LSV01","Asperges",null,"LWED01","Asperges",null,"LWES01","Pâtes à la sauce tomates",null,"VMR01","Rôti d'agneau",null,"VMWE01","Agneau",null,"VS01","Bifteck haché de bœuf",null,"1 bocal pour 1 repas (asperges)",null,"01",null,"Janvier",null,"CF01","Jour de l'an"]
["DS","Aliments journaliers","Aliments journaliers dessert",null,"Dimanche midi et soir",null,null,null,null,null,null,null,"DWE02","Autres fruits",null,"LMR02","Avocat",null,"LSLM02","Choucroute",null,"LSMJ02","Petits pois",null,"LSV02","Avocat",null,"LWED02","Chips",null,"LWES02","Pâtes au beurre",null,"VMR02","Rôti de bœuf",null,"VMWE02","Bœuf",null,"VS02","Bifteck haché de cheval",null,"1 boîte de 6 œufs (3 œufs par repas)",null,"02",null,"Février",null,"CF02","Pâques"]
["DWE","Aliments weekend","Aliments weekend desserts",null,"Dimanche soir",null,null,null,null,null,null,null,"DWE03","Avocats",null,"LMR03","Carottes",null,"LSLM03","Chou-fleur",null,"LSMJ03","Petits pois et jeunes carottes",null,"LSV03","Betterave rouge",null,"LWED03","Frites",null,"LWES03","Pâtes au fromage râpé",null,"VMR03","Rôti de cheval",null,"VMWE03","Cheval",null,"VS03","Bifteck haché de veau",null,"1 boîte pour 1 repas",null,"03",null,"Mars",null,"CF03","Lundi de Pâques"]
["LMR","Aliments midi retraite","Aliments midi retraite légumes",null,"Lundi à dimanche soirs",null,null,null,null,null,null,null,"DWE04","Bananes",null,"LMR04","Céleri",null,"LSLM04","Choux de Bruxelles",null,"LSMJ04","Ratatouille",null,"LSV04","Carottes",null,"LWED04","Haricots verts",null,null,null,null,"VMR04","Rôti de porc",null,"VMWE04","Dinde",null,"VS04","Bouch2e à la reine",null,"1 boîte pour 2 repas",null,"04",null,"Avril",null,"CF04","Fête du travail"]
["LSLM","Aliments journaliers","Aliments journaliers légumes lundi mardi",null,"Lundi à vendredi midis",null,null,null,null,null,null,null,"DWE05","Clémentines",null,"LMR05","Champignons",null,"LSLM05","Couscous",null,"LSMJ05","Raviolis",null,"LSV05","Céleri",null,null,null,null,null,null,null,"VMR05","Rôti de veau",null,"VMWE05","Poisson",null,"VS05","Boudin",null,"1 botte ou 1 sachet pour 1 repas (radis)",null,"05",null,"Mai",null,"CF05","Victoire 1945"]
["LSMJ","Aliments journaliers","Aliments journaliers légumes mercredi jeudi",null,"Lundi à vendredi soirs",null,null,null,null,null,null,null,"DWE06","Crème",null,"LMR06","Concombre",null,"LSLM06","Endives",null,"LSMJ06","Tomates pelées",null,"LSV06","Champignons",null,null,null,null,null,null,null,null,null,null,"VMWE06","Porc",null,"VS06","Cervelas",null,"1 botte ou 1 sachet pour 2 repas (radis)",null,"06",null,"Juin",null,"CF06","Jeudi de l'ascension"]
["LSV","Aliments journaliers","Aliments journaliers légumes vendredi",null,"Lundi et mardi soirs",null,null,null,null,null,null,null,"DWE07","Dattes",null,"LMR07","Couscous",null,"LSLM07","Haricots verts",null,null,null,null,"LSV07","Concombre",null,null,null,null,null,null,null,null,null,null,"VMWE07","Veau",null,"VS07","Cœur",null,"1 morceau de 500 grammes pour 5 repas (VMR)",null,"07",null,"Juillet",null,"CF07","Pentecôte"]
["LWED","Aliments weekend","Aliments weekend légumes dimanche",null,"Mercredi et jeudi soirs",null,null,null,null,null,null,null,"DWE08","Figues",null,"LMR08","Maïs",null,"LSLM08","Maïs",null,null,null,null,"LSV08","Radis",null,null,null,null,null,null,null,null,null,null,null,null,null,"VS08","Croque-monsieur",null,"1 pack de 4 pots pour le weekend. 1 pot par repas",null,"08",null,"Août",null,"CF08","Lundi de Pentecôte"]
["LWES","Aliments weekend","Aliments weekend légumes samedi",null,"Samedi et dimanche midis",null,null,null,null,null,null,null,"DWE09","Fromage blanc",null,"LMR09","Pâtes à la sauce tomates",null,"LSLM09","Paella",null,null,null,null,"LSV09","Salade",null,null,null,null,null,null,null,null,null,null,null,null,null,"VS09","Foie",null,"1 pack de 6 pots, 3 pots par repas (petits suisses)",null,"09",null,"Septembre",null,"CF09","Fête nationale"]
["VMR","Aliments midi retraite","Aliments midi retraite viandes",null,"Samedi et dimanche midis et soirs",null,null,null,null,null,null,null,"DWE10","Fruits au sirop",null,"LMR10","Pâtes au beurre",null,"LSLM10","Poireau",null,null,null,null,"LSV10","Salsifis",null,null,null,null,null,null,null,null,null,null,null,null,null,"VS10","Fromage de tête",null,"1 paquet de 30 tranches Saint Azay. 5 tranches par repas",null,"10",null,"Octobre",null,"CF10","Assomption"]
["VMWE","Aliments weekend","Aliments weekend viandes",null,"Samedi midi et soir",null,null,null,null,null,null,null,"DWE11","Fruits de saison",null,"LMR11","Poireau",null,"LSLM11","Pomme de terre",null,null,null,null,"LSV11","Tomates",null,null,null,null,null,null,null,null,null,null,null,null,null,"VS11","Jambon",null,"1 paquet pour 1 repas",null,"11",null,"Novembre",null,"CF11","Toussaint"]
["VS","Aliments journaliers","Aliments journaliers viandes",null,"Vendredi soir",null,null,null,null,null,null,null,"DWE12","Gâteau de riz",null,"LMR12","Pomme de terre",null,"LSLM12","Purée",null,null,null,null,null,null,null,null,null,null,null,null,null,null,null,null,null,null,null,"VS12","Jambonneau",null,"1 paquet pour 2 repas",null,"12",null,"Décembre",null,"CF12","Armistice 1918"]
[null,null,null,null,null,null,null,null,null,null,null,null,"DWE13","Gâteau de semoule",null,"LMR13","Purée",null,"LSLM13","Quenelles",null,null,null,null,null,null,null,null,null,null,null,null,null,null,null,null,null,null,null,"VS13","Mortadelle",null,"1 paquet pour 4 repas (dattes, figues, pruneaux)",null,"13",null,null,null,"CF13","Noël"]
[null,null,null,null,null,null,null,null,null,null,null,null,"DWE14","Gâteaux samedi dimanche",null,"LMR14","Radis",null,"LSLM14","Riz",null,null,null,null,null,null,null,null,null,null,null,null,null,null,null,null,null,null,null,"VS14","Œufs",null,"1 paquet pour 5 repas (betterave rouge)",null,"14"]
[null,null,null,null,null,null,null,null,null,null,null,null,"DWE15","Mousse au chocolat",null,"LMR15","Riz",null,null,null,null,null,null,null,null,null,null,null,null,null,null,null,null,null,null,null,null,null,null,"VS15","Pizza",null,"1 sachet de 2000 grammes, 1 pomme par repas",null,"15"]
[null,null,null,null,null,null,null,null,null,null,null,null,"DWE16","Oranges",null,"LMR16","Salade",null,null,null,null,null,null,null,null,null,null,null,null,null,null,null,null,null,null,null,null,null,null,"VS16","Poisson",null,"1 sachet pour 2 repas",null,"16"]
[null,null,null,null,null,null,null,null,null,null,null,null,"DWE17","Petits suisses",null,"LMR17","Tomates",null,null,null,null,null,null,null,null,null,null,null,null,null,null,null,null,null,null,null,null,null,null,"VS17","Quiche lorraine",null,"1 sachet pour 4 repas",null,"17"]
[null,null,null,null,null,null,null,null,null,null,null,null,"DWE18","Pruneaux",null,null,null,null,null,null,null,null,null,null,null,null,null,null,null,null,null,null,null,null,null,null,null,null,null,"VS18","Roulade à la pistache",null,"1 tranche pour 1 repas VMWE)",null,"18"]
[null,null,null,null,null,null,null,null,null,null,null,null,"DWE19","Riz au lait",null,null,null,null,null,null,null,null,null,null,null,null,null,null,null,null,null,null,null,null,null,null,null,null,null,"VS19","Roulé au fromage",null,"1 tranche pour 2 repas (fromage de tête, tête persillée)",null,"19"]
[null,null,null,null,null,null,null,null,null,null,null,null,"DWE20","Tapioca",null,null,null,null,null,null,null,null,null,null,null,null,null,null,null,null,null,null,null,null,null,null,null,null,null,"VS20","Salami",null,"125 grammes pour 1 repas (bifteck haché de cheval)",null,"20"]
[null,null,null,null,null,null,null,null,null,null,null,null,"DWE21","Yaourts",null,null,null,null,null,null,null,null,null,null,null,null,null,null,null,null,null,null,null,null,null,null,null,null,null,"VS21","Saucisses",null,"20 frites pour 1 repas",null,"21"]
[null,null,null,null,null,null,null,null,null,null,null,null,null,null,null,null,null,null,null,null,null,null,null,null,null,null,null,null,null,null,null,null,null,null,null,null,null,null,null,"VS22","Saucisson",null,"25 grammes pour 1 repas (couscous, purée, riz)",null,"22"]
[null,null,null,null,null,null,null,null,null,null,null,null,null,null,null,null,null,null,null,null,null,null,null,null,null,null,null,null,null,null,null,null,null,null,null,null,null,null,null,"VS23","Tête persillée",null,"3 tranches pour 1 repas",null,"23"]
[null,null,null,null,null,null,null,null,null,null,null,null,null,null,null,null,null,null,null,null,null,null,null,null,null,null,null,null,null,null,null,null,null,null,null,null,null,null,null,"VS24","Tête roulée",null,"5 cuillères pour 1 repas (pâtes)",null,"24"]
[null,null,null,null,null,null,null,null,null,null,null,null,null,null,null,null,null,null,null,null,null,null,null,null,null,null,null,null,null,null,null,null,null,null,null,null,null,null,null,"VS25","Thon",null,"50 grammes pour un repas",null,"25"]
[null,null,null,null,null,null,null,null,null,null,null,null,null,null,null,null,null,null,null,null,null,null,null,null,null,null,null,null,null,null,null,null,null,null,null,null,null,null,null,"VS26","Viande cassoulet",null,"Unité : 1 branche par repas (céleri)",null,"26"]
[null,null,null,null,null,null,null,null,null,null,null,null,null,null,null,null,null,null,null,null,null,null,null,null,null,null,null,null,null,null,null,null,null,null,null,null,null,null,null,"VS27","Viande choucroute",null,"Unité : 1 morceau pour 1 repas",null,"27"]
[null,null,null,null,null,null,null,null,null,null,null,null,null,null,null,null,null,null,null,null,null,null,null,null,null,null,null,null,null,null,null,null,null,null,null,null,null,null,null,"VS28","Viande paella",null,"Unité : 1 pour 1 repas",null,"28"]
[null,null,null,null,null,null,null,null,null,null,null,null,null,null,null,null,null,null,null,null,null,null,null,null,null,null,null,null,null,null,null,null,null,null,null,null,null,null,null,null,null,null,"Unité : 1 pour 2 repas",null,"29"]
[null,null,null,null,null,null,null,null,null,null,null,null,null,null,null,null,null,null,null,null,null,null,null,null,null,null,null,null,null,null,null,null,null,null,null,null,null,null,null,null,null,null,"Unité : 1 pour 4 repas (ananas)",null,"30"]
[null,null,null,null,null,null,null,null,null,null,null,null,null,null,null,null,null,null,null,null,null,null,null,null,null,null,null,null,null,null,null,null,null,null,null,null,null,null,null,null,null,null,"Unité : 1 tête par repas (ou pack de 3 têtes : salade",null,"31"]
[null,null,null,null,null,null,null,null,null,null,null,null,null,null,null,null,null,null,null,null,null,null,null,null,null,null,null,null,null,null,null,null,null,null,null,null,null,null,null,null,null,null,"Unité : 2 à 4 par repas"]
[null,null,null,null,null,null,null,null,null,null,null,null,null,null,null,null,null,null,null,null,null,null,null,null,null,null,null,null,null,null,null,null,null,null,null,null,null,null,null,null,null,null,"Unité : 2 pour 1 repas (carottes, tomates)"]

{"sheet":"Accueil produits","index":1,"n_rows":165,"n_cols":6,"rows_kept":165,"cut":false,"hidden":false,"merged":[]}
["Accueil produits.",null,null,null,"Open","Save"]
[null,null,null,null,"2021-03-13T16:22:23","2021-03-12T21:56:17"]
[null,null,null,null,"2021-03-13T21:31:01","2021-03-13T16:44:11"]
[null,null,null,null,"2021-03-14T20:09:28","2021-03-13T17:01:06"]
[null,null,null,null,"2021-03-15T16:01:33","2021-03-13T17:05:56"]
["DMR",null,null,null,"2021-03-15T16:27:21","2021-03-13T17:32:47"]
[null,null,null,null,"2021-03-15T16:36:59","2021-03-13T17:39:26"]
["DMR",null,null,null,"2021-03-15T21:17:39","2021-03-13T17:42:05"]
[null,null,null,null,"2021-03-16T20:55:26","2021-03-13T18:43:04"]
[null,null,null,null,"2021-03-16T21:36:30","2021-03-13T20:17:41"]
[null,null,null,null,"2021-03-17T14:59:16","2021-03-13T20:17:52"]
[null,null,null,null,"2021-03-17T18:53:10","2021-03-13T20:35:52"]
[null,null,null,null,"2021-03-17T21:56:20","2021-03-13T20:44:17"]
[null,null,null,null,"2021-03-17T22:23:05","2021-03-13T20:50:56"]
[null,null,null,null,"2021-03-18T16:27:39","2021-03-13T21:00:52"]
[null,null,null,null,"2021-03-18T16:32:25","2021-03-13T21:07:15"]
[null,null,null,null,"2021-03-18T18:27:36","2021-03-13T21:41:48"]
[null,null,null,null,"2021-03-19T17:49:13","2021-03-14T20:21:11"]
[null,null,null,null,"2021-03-19T19:57:09","2021-03-14T21:17:18"]
[null,null,"                      ",null,"2021-03-20T21:07:08","2021-03-15T16:28:50"]
[null,null,null,null,"2021-03-21T14:32:39","2021-03-15T16:37:04"]
[null,null,null,null,"2021-03-21T14:53:34","2021-03-15T16:44:36"]
[null,null,null,null,"2021-03-21T15:15:23","2021-03-15T18:30:13"]
[null,null,null,null,"2021-03-21T16:17:18","2021-03-15T21:17:53"]
[null,null,null,null,"2021-03-21T18:54:45","2021-03-15T21:21:18"]
[null,null,null,null,"2021-03-21T23:01:32","2021-03-15T21:37:49"]
[null,null,null,null,"2021-03-22T16:47:17","2021-03-15T21:43:42"]
[null,null,null,null,"2021-03-22T20:25:43","2021-03-15T21:51:32"]
[null,null,null,null,"2021-03-23T21:11:55","2021-03-15T21:56:40"]
[null,null,null,null,"2021-03-23T21:52:34","2021-03-15T22:04:36"]
[null,null,null,null,"2021-03-24T16:01:00","2021-03-15T22:11:12"]
[null,null,null,null,"2021-03-25T16:49:19","2021-03-16T21:36:36"]
[null,null,null,null,"2021-03-26T19:46:26","2021-03-16T21:45:11"]
[null,null,null,null,"2021-03-26T22:06:43","2021-03-16T22:05:47"]
[null,null,null,null,"2021-03-27T17:32:28","2021-03-17T15:31:01"]
[null,null,null,null,"2021-03-28T14:38:27","2021-03-17T15:31:38"]
[null,null,null,null,"2021-03-28T21:25:59","2021-03-17T15:35:13"]
[null,null,null,null,"2021-03-29T16:09:01","2021-03-17T15:39:05"]
[null,null,null,null,"2021-03-29T21:51:35","2021-03-17T15:41:34"]
[null,null,null,null,"2021-03-30T14:13:38","2021-03-17T15:43:13"]
[null,null,null,null,"2021-03-30T22:23:58","2021-03-17T15:53:06"]
[null,null,null,null,"2021-03-31T12:04:26","2021-03-17T15:57:23"]
[null,null,null,null,"2021-03-31T12:23:45","2021-03-17T16:00:19"]
[null,null,null,null,"2021-04-01T21:37:42","2021-03-17T16:03:36"]
[null,null,null,null,"2021-04-02T14:34:44","2021-03-17T16:07:36"]
[null,null,null,null,"2021-04-02T15:29:03","2021-03-17T16:09:13"]
[null,null,null,null,"2021-04-02T15:35:00","2021-03-17T16:11:57"]
[null,null,null,null,"2021-04-02T15:40:14","2021-03-17T16:21:13"]
[null,null,null,null,"2021-04-05T14:54:21","2021-03-17T16:21:31"]
[null,null,null,null,"2021-04-05T18:06:15","2021-03-17T16:32:30"]
[null,null,null,null,"2021-04-05T20:51:19","2021-03-17T20:37:33"]
[null,null,null,null,"2021-04-05T21:43:49","2021-03-17T20:45:30"]
[null,null,null,null,"2021-04-06T20:22:01","2021-03-17T21:12:15"]
[null,null,null,null,"2021-04-08T13:18:38","2021-03-17T21:55:56"]
[null,null,null,null,"2021-04-08T19:08:47","2021-03-17T21:59:43"]
[null,null,null,null,"2021-04-10T17:36:18","2021-03-17T22:23:13"]
[null,null,null,null,"2021-04-10T18:39:15","2021-03-18T16:31:59"]
[null,null,null,null,"2021-04-11T21:23:30","2021-03-18T16:38:04"]
[null,null,null,null,"2021-04-12T15:01:18","2021-03-18T16:38:58"]
[null,null,null,null,"2021-04-12T18:58:36","2021-03-18T21:14:28"]
[null,null,null,null,"2021-04-14T16:53:49","2021-03-18T21:25:54"]
[null,null,null,null,"2021-04-14T19:41:30","2021-03-18T21:36:39"]
[null,null,null,null,null,"2021-03-18T22:08:58"]
[null,null,null,null,null,"2021-03-18T22:21:22"]
[null,null,null,null,null,"2021-03-19T19:57:40"]
[null,null,null,null,null,"2021-03-19T20:00:56"]
[null,null,null,null,null,"2021-03-19T20:08:34"]
[null,null,null,null,null,"2021-03-19T20:13:56"]
[null,null,null,null,null,"2021-03-19T20:14:34"]
[null,null,null,null,null,"2021-03-19T20:24:46"]
[null,null,null,null,null,"2021-03-19T20:28:14"]
[null,null,null,null,null,"2021-03-19T20:54:30"]
[null,null,null,null,null,"2021-03-19T22:10:19"]
[null,null,null,null,null,"2021-03-19T22:13:36"]
[null,null,null,null,null,"2021-03-20T22:44:50"]
[null,null,null,null,null,"2021-03-20T23:05:03"]
[null,null,null,null,null,"2021-03-20T23:12:55"]
[null,null,null,null,null,"2021-03-21T14:49:47"]
[null,null,null,null,null,"2021-03-21T14:50:44"]
[null,null,null,null,null,"2021-03-21T15:07:54"]
[null,null,null,null,null,"2021-03-21T15:11:53"]
[null,null,null,null,null,"2021-03-21T16:08:25"]
[null,null,null,null,null,"2021-03-21T16:08:47"]
[null,null,null,null,null,"2021-03-21T16:20:56"]
[null,null,null,null,null,"2021-03-21T17:59:45"]
[null,null,null,null,null,"2021-03-21T18:31:47"]
[null,null,null,null,null,"2021-03-21T22:15:04"]
[null,null,null,null,null,"2021-03-21T22:17:40"]
[null,null,null,null,null,"2021-03-21T22:37:41"]
[null,null,null,null,null,"2021-03-21T22:45:20"]
[null,null,null,null,null,"2021-03-21T22:49:22"]
[null,null,null,null,null,"2021-03-21T23:05:43"]
[null,null,null,null,null,"2021-03-22T18:55:30"]
[null,null,null,null,null,"2021-03-22T21:46:58"]
[null,null,null,null,null,"2021-03-23T22:24:30"]
[null,null,null,null,null,"2021-03-23T22:26:05"]
[null,null,null,null,null,"2021-03-23T22:26:40"]
[null,null,null,null,null,"2021-03-23T22:38:06"]
[null,null,null,null,null,"2021-03-24T16:32:59"]
[null,null,null,null,null,"2021-03-25T17:06:40"]
[null,null,null,null,null,"2021-03-25T17:08:34"]
[null,null,null,null,null,"2021-03-25T17:29:12"]
[null,null,null,null,null,"2021-03-26T19:47:01"]
[null,null,null,null,null,"2021-03-26T22:07:49"]
[null,null,null,null,null,"2021-03-26T22:10:36"]
[null,null,null,null,null,"2021-03-26T22:11:27"]
[null,null,null,null,null,"2021-03-27T17:46:51"]
[null,null,null,null,null,"2021-03-27T21:45:35"]
[null,null,null,null,null,"2021-03-27T22:21:30"]
[null,null,null,null,null,"2021-03-28T14:42:47"]
[null,null,null,null,null,"2021-03-28T15:15:56"]
[null,null,null,null,null,"2021-03-28T15:19:48"]
[null,null,null,null,null,"2021-03-28T15:34:24"]
[null,null,null,null,null,"2021-03-28T15:54:13"]
[null,null,null,null,null,"2021-03-28T15:58:40"]
[null,null,null,null,null,"2021-03-28T21:29:47"]
[null,null,null,null,null,"2021-03-28T21:30:18"]
[null,null,null,null,null,"2021-03-29T17:24:08"]
[null,null,null,null,null,"2021-03-29T21:59:47"]
[null,null,null,null,null,"2021-03-30T19:54:41"]
[null,null,null,null,null,"2021-03-30T21:40:45"]
[null,null,null,null,null,"2021-03-30T21:51:37"]
[null,null,null,null,null,"2021-03-30T22:01:37"]
[null,null,null,null,null,"2021-03-30T22:19:01"]
[null,null,null,null,null,"2021-03-30T22:35:29"]
[null,null,null,null,null,"2021-03-31T12:10:53"]
[null,null,null,null,null,"2021-03-31T16:14:42"]
[null,null,null,null,null,"2021-03-31T17:33:13"]
[null,null,null,null,null,"2021-03-31T18:02:28"]
[null,null,null,null,null,"2021-03-31T22:18:07"]
[null,null,null,null,null,"2021-04-01T21:46:05"]
[null,null,null,null,null,"2021-04-02T14:46:08"]
[null,null,null,null,null,"2021-04-02T15:28:17"]
[null,null,null,null,null,"2021-04-02T15:34:20"]
[null,null,null,null,null,"2021-04-02T15:48:08"]
[null,null,null,null,null,"2021-04-02T15:54:45"]
[null,null,null,null,null,"2021-04-02T15:57:48"]
[null,null,null,null,null,"2021-04-05T15:39:12"]
[null,null,null,null,null,"2021-04-05T15:57:13"]
[null,null,null,null,null,"2021-04-05T16:02:34"]
[null,null,null,null,null,"2021-04-05T17:19:33"]
[null,null,null,null,null,"2021-04-05T17:25:58"]
[null,null,null,null,null,"2021-04-05T18:46:41"]
[null,null,null,null,null,"2021-04-05T19:45:30"]
[null,null,null,null,null,"2021-04-05T20:53:46"]
[null,null,null,null,null,"2021-04-05T21:44:10"]
[null,null,null,null,null,"2021-04-06T20:28:59"]
[null,null,null,null,null,"2021-04-06T20:32:08"]
[null,null,null,null,null,"2021-04-06T21:24:03"]
[null,null,null,null,null,"2021-04-06T21:27:06"]
[null,null,null,null,null,"2021-04-08T15:10:24"]
[null,null,null,null,null,"2021-04-08T15:17:24"]
[null,null,null,null,null,"2021-04-08T15:23:47"]
[null,null,null,null,null,"2021-04-08T15:38:46"]
[null,null,null,null,null,"2021-04-08T16:17:55"]
[null,null,null,null,null,"2021-04-08T16:32:30"]
[null,null,null,null,null,"2021-04-08T22:05:52"]
[null,null,null,null,null,"2021-04-10T17:37:51"]
[null,null,null,null,null,"2021-04-10T18:40:30"]
[null,null,null,null,null,"2021-04-11T21:25:21"]
[null,null,null,null,null,"2021-04-11T21:57:08"]
[null,null,null,null,null,"2021-04-12T15:36:49"]
[null,null,null,null,null,"2021-04-12T15:41:30"]
[null,null,null,null,null,"2021-04-14T16:57:36"]
[null,null,null,null,null,"2021-04-14T19:41:35"]

{"sheet":"Création produits","index":2,"n_rows":24,"n_cols":2,"rows_kept":24,"cut":false,"hidden":false,"merged":[]}
["Création produits."]
[]
["Numéro création",{"$f":"MAX(IF(TabBDProduits[Catégorie]=CelCPCatégorie,TabBDProduits[Numéro création]))+1","v":29}]
["Catégorie","VS"]
["Nature",{"$f":"IFERROR(VLOOKUP(CelCPCatégorie,TabCA[],3,FALSE),\"\")","v":"Aliments journaliers viandes"}]
["Code produit","VS28"]
["Nom produit",{"$f":"IFERROR(VLOOKUP(CelCPCodeProduit,INDIRECT(\"Tab\"&CelCPCatégorie),2,FALSE),\"-\")","v":"Viande paella"}]
["Conditionnement","1 boîte pour 2 repas"]
["Jour","Lundi et mardi soirs"]
["Quantité par jour",0.5]
["Destination",{"$f":"IFERROR(VLOOKUP(CelCPCatégorie,TabCA[],2,FALSE),\"\")","v":"Aliments journaliers"}]
["À modifier","Non"]
["Date création",{"$f":"TODAY()","v":"2021-04-14"}]
[]
[]
[]
[]
[]
[]
[]
["Légende des couleurs"]
[]
[null,"À renseigner"]
[null,"Formule, ne pas modifier"]

{"sheet":"BD produits","index":3,"n_rows":119,"n_cols":12,"rows_kept":119,"cut":false,"hidden":false,"merged":[]}
["Intitulé","Numéro création","Catégorie","Nature","Code produit","Nom produit","Conditionnement","Jour","Quantité par jour","Destination","À modifier","Date création"]
["DMR01-1",1,"DMR","Aliments midi retraite dessert","DMR01","Pomme","1 sachet de 2000 grammes, 1 pomme par repas","Lundi à vendredi midis",1,"Aliments midi retraite","Oui","2021-04-05"]
["DS01-1",1,"DS","Aliments journaliers dessert","DS01","Pomme","1 sachet de 2000 grammes, 1 pomme par repas","Lundi à vendredi soirs",1,"Aliments journaliers","Oui","2021-04-05"]
["DWE01-1",1,"DWE","Aliments weekend desserts","DWE01","Ananas","Unité : 1 pour 4 repas (ananas)","Samedi et dimanche midis et soirs",2,"Aliments weekend","Non","2021-04-12"]
["DWE02-2",2,"DWE","Aliments weekend desserts","DWE02","Autres fruits","Unité : 2 à 4 par repas","Samedi et dimanche midis et soirs",8,"Aliments weekend","Non","2021-04-12"]
["DWE03-3",3,"DWE","Aliments weekend desserts","DWE03","Avocats","Unité : 1 pour 1 repas","Samedi et dimanche midis et soirs",2,"Aliments weekend","Oui","2021-04-05"]
["DWE04-4",4,"DWE","Aliments weekend desserts","DWE04","Bananes","Unité : 1 pour 1 repas","Samedi et dimanche midis et soirs",3,"Aliments weekend","Oui","2021-04-05"]
["DWE05-5",5,"DWE","Aliments weekend desserts","DWE05","Clémentines","Unité : 2 à 4 par repas","Samedi et dimanche midis et soirs",8,"Aliments weekend","Oui","2021-04-05"]
["DWE06-6",6,"DWE","Aliments weekend desserts","DWE06","Crème","1 pack de 4 pots pour le weekend. 1 pot par repas","Samedi et dimanche midis et soirs",2,"Aliments weekend","Oui","2021-04-05"]
["DWE07-7",7,"DWE","Aliments weekend desserts","DWE07","Dattes","1 paquet pour 4 repas (dattes, figues, pruneaux)","Samedi et dimanche midis et soirs",0.5,"Aliments weekend","Oui","2021-04-05"]
["DWE08-8",8,"DWE","Aliments weekend desserts","DWE08","Figues","1 paquet pour 4 repas (dattes, figues, pruneaux)","Samedi et dimanche midis et soirs",0.5,"Aliments weekend","Oui","2021-04-05"]
["DWE09-9",9,"DWE","Aliments weekend desserts","DWE09","Fromage blanc","1 pack de 4 pots pour le weekend. 1 pot par repas","Samedi et dimanche midis et soirs",2,"Aliments weekend","Oui","2021-04-05"]
["DWE10-10",10,"DWE","Aliments weekend desserts","DWE10","Fruits au sirop","1 boîte pour 2 repas","Samedi et dimanche midis et soirs",1,"Aliments weekend","Oui","2021-04-05"]
["DWE11-11",11,"DWE","Aliments weekend desserts","DWE11","Fruits de saison","Unité : 2 à 4 par repas","Samedi et dimanche midis et soirs",null,"Aliments weekend","Oui","2021-04-05"]
["DWE12-12",12,"DWE","Aliments weekend desserts","DWE12","Gâteau de riz","1 pack de 4 pots pour le weekend. 1 pot par repas","Samedi et dimanche midis et soirs",2,"Aliments weekend","Oui","2021-04-05"]
["DWE13-13",13,"DWE","Aliments weekend desserts","DWE13","Gâteau de semoule","1 pack de 4 pots pour le weekend. 1 pot par repas","Samedi et dimanche midis et soirs",2,"Aliments weekend","Oui","2021-04-05"]
["DWE14-14",14,"DWE","Aliments weekend desserts","DWE14","Gâteaux samedi dimanche","1 boîte pour 2 repas","Samedi et dimanche midis et soirs",1,"Aliments weekend","Oui","2021-04-05"]
["DWE15-15",15,"DWE","Aliments weekend desserts","DWE15","Mousse au chocolat","1 pack de 4 pots pour le weekend. 1 pot par repas","Samedi et dimanche midis et soirs",2,"Aliments weekend","Oui","2021-04-05"]
["DWE16-16",16,"DWE","Aliments weekend desserts","DWE16","Oranges","Unité : 1 pour 1 repas","Samedi et dimanche midis et soirs",2,"Aliments weekend","Oui","2021-04-05"]
["DWE17-17",17,"DWE","Aliments weekend desserts","DWE17","Petits suisses","1 pack de 6 pots, 3 pots par repas (petits suisses)","Samedi et dimanche midis et soirs",6,"Aliments weekend","Oui","2021-04-05"]
["DWE18-18",18,"DWE","Aliments weekend desserts","DWE18","Pruneaux","1 paquet pour 4 repas (dattes, figues, pruneaux)","Samedi et dimanche midis et soirs",0.5,"Aliments weekend","Oui","2021-04-05"]
["DWE19-19",19,"DWE","Aliments weekend desserts","DWE19","Riz au lait","1 pack de 4 pots pour le weekend. 1 pot par repas","Samedi et dimanche midis et soirs",2,"Aliments weekend","Oui","2021-04-05"]
["DWE20-20",20,"DWE","Aliments weekend desserts","DWE20","Tapioca","50 grammes pour un repas","Samedi et dimanche midis et soirs",100,"Aliments weekend","Oui","2021-04-05"]
["DWE21-21",21,"DWE","Aliments weekend desserts","DWE21","Yaourts","1 pack de 4 pots pour le weekend. 1 pot par repas","Samedi et dimanche midis et soirs",2,"Aliments weekend","Non","2021-04-12"]
["LMR01-1",1,"LMR","Aliments midi retraite légumes","LMR01","Asperges","1 bocal pour 1 repas (asperges)","Lundi à vendredi midis",1,"Aliments midi retraite","Non","2021-04-05"]
["LMR02-2",2,"LMR","Aliments midi retraite légumes","LMR02","Avocat","Unité : 1 pour 1 repas","Lundi à vendredi midis",1,"Aliments midi retraite","Non","2021-04-05"]
["LMR03-3",3,"LMR","Aliments midi retraite légumes","LMR03","Carottes","Unité : 2 pour 1 repas (carottes, tomates)","Lundi à vendredi midis",2,"Aliments midi retraite","Non","2021-04-05"]
["LMR04-4",4,"LMR","Aliments midi retraite légumes","LMR04","Céleri","Unité : 1 branche par repas (céleri)","Lundi à vendredi midis",1,"Aliments midi retraite","Non","2021-04-05"]
["LMR05-5",5,"LMR","Aliments midi retraite légumes","LMR05","Champignons","1 boîte pour 1 repas","Lundi à vendredi midis",1,"Aliments midi retraite","Non","2021-04-05"]
["LMR06-6",6,"LMR","Aliments midi retraite légumes","LMR06","Concombre","Unité : 1 pour 1 repas","Lundi à vendredi midis",null,"Aliments midi retraite","Non","2021-04-05"]
["LMR07-7",7,"LMR","Aliments midi retraite légumes","LMR07","Couscous","25 grammes pour 1 repas (couscous, purée, riz)","Lundi à vendredi midis",25,"Aliments midi retraite","Non","2021-04-05"]
["LMR08-8",8,"LMR","Aliments midi retraite légumes","LMR08","Maïs","1 boîte pour 2 repas","Lundi à vendredi midis",0.5,"Aliments midi retraite","Non","2021-04-05"]
["LMR09-9",9,"LMR","Aliments midi retraite légumes","LMR09","Pâtes à la sauce tomates","5 cuillères pour 1 repas (pâtes)","Lundi à vendredi midis",5,"Aliments midi retraite","Non","2021-04-05"]
["LMR10-10",10,"LMR","Aliments midi retraite légumes","LMR10","Pâtes au beurre","5 cuillères pour 1 repas (pâtes)","Lundi à vendredi midis",5,"Aliments midi retraite","Non","2021-04-05"]
["LMR11-11",11,"LMR","Aliments midi retraite légumes","LMR11","Poireau","Unité : 1 pour 1 repas","Lundi à vendredi midis",1,"Aliments midi retraite","Non","2021-04-05"]
["LMR12-12",12,"LMR","Aliments midi retraite légumes","LMR12","Pomme de terre","Unité : 1 pour 1 repas","Lundi à vendredi midis",1,"Aliments midi retraite","Non","2021-04-05"]
["LMR13-13",13,"LMR","Aliments midi retraite légumes","LMR13","Purée","25 grammes pour 1 repas (couscous, purée, riz)","Lundi à vendredi midis",25,"Aliments midi retraite","Non","2021-04-05"]
["LMR14-14",14,"LMR","Aliments midi retraite légumes","LMR14","Radis","1 botte ou 1 sachet pour 2 repas (radis)","Lundi à vendredi midis",0.5,"Aliments midi retraite","Non","2021-04-05"]
["LMR15-15",15,"LMR","Aliments midi retraite légumes","LMR15","Riz","25 grammes pour 1 repas (couscous, purée, riz)","Lundi à vendredi midis",25,"Aliments midi retraite","Non","2021-04-05"]
["LMR16-16",16,"LMR","Aliments midi retraite légumes","LMR16","Salade","Unité : 1 tête par repas (ou pack de 3 têtes : salade","Lundi à vendredi midis",1,"Aliments midi retraite","Non","2021-04-05"]
["LMR17-17",17,"LMR","Aliments midi retraite légumes","LMR17","Tomates","Unité : 2 pour 1 repas (carottes, tomates)","Lundi à vendredi midis",2,"Aliments midi retraite","Non","2021-04-05"]
["LSLM01-1",1,"LSLM","Aliments journaliers légumes lundi mardi","LSLM01","Cassoulet","1 boîte pour 2 repas","Lundi et mardi soirs",0.5,"Aliments journaliers","Non","2021-04-05"]
["LSLM02-2",2,"LSLM","Aliments journaliers légumes lundi mardi","LSLM02","Choucroute","1 boîte pour 2 repas","Lundi et mardi soirs",0.5,"Aliments journaliers","Non","2021-04-05"]
["LSLM03-3",3,"LSLM","Aliments journaliers légumes lundi mardi","LSLM03","Chou-fleur","Unité : 1 pour 2 repas","Lundi et mardi soirs",0.5,"Aliments journaliers","Non","2021-04-05"]
["LSLM04-4",4,"LSLM","Aliments journaliers légumes lundi mardi","LSLM04","Choux de Bruxelles","1 boîte pour 2 repas","Lundi et mardi soirs",0.5,"Aliments journaliers","Non","2021-04-05"]
["LSLM05-5",5,"LSLM","Aliments journaliers légumes lundi mardi","LSLM05","Couscous","25 grammes pour 1 repas (couscous, purée, riz)","Lundi et mardi soirs",25,"Aliments journaliers","Non","2021-04-05"]
["LSLM06-6",6,"LSLM","Aliments journaliers légumes lundi mardi","LSLM06","Endives","1 boîte pour 2 repas","Lundi et mardi soirs",0.5,"Aliments journaliers","Non","2021-04-05"]
["LSLM07-7",7,"LSLM","Aliments journaliers légumes lundi mardi","LSLM07","Haricots verts","1 boîte pour 2 repas","Lundi et mardi soirs",0.5,"Aliments journaliers","Non","2021-04-05"]
["LSLM08-8",8,"LSLM","Aliments journaliers légumes lundi mardi","LSLM08","Maïs","1 boîte pour 2 repas","Lundi et mardi soirs",0.5,"Aliments journaliers","Non","2021-04-05"]
["LSLM09-9",9,"LSLM","Aliments journaliers légumes lundi mardi","LSLM09","Paella","1 paquet pour 2 repas","Lundi et mardi soirs",0.5,"Aliments journaliers","Non","2021-04-05"]
["LSLM10-10",10,"LSLM","Aliments journaliers légumes lundi mardi","LSLM10","Poireau","Unité : 1 pour 1 repas","Lundi et mardi soirs",1,"Aliments journaliers","Non","2021-04-05"]
["LSLM11-11",11,"LSLM","Aliments journaliers légumes lundi mardi","LSLM11","Pomme de terre","Unité : 1 pour 1 repas","Lundi et mardi soirs",1,"Aliments journaliers","Non","2021-04-05"]
["LSLM12-12",12,"LSLM","Aliments journaliers légumes lundi mardi","LSLM12","Purée","25 grammes pour 1 repas (couscous, purée, riz)","Lundi et mardi soirs",25,"Aliments journaliers","Non","2021-04-05"]
["LSLM13-13",13,"LSLM","Aliments journaliers légumes lundi mardi","LSLM13","Quenelles","1 boîte pour 2 repas","Lundi et mardi soirs",0.5,"Aliments journaliers","Non","2021-04-05"]
["LSLM14-14",14,"LSLM","Aliments journaliers légumes lundi mardi","LSLM14","Riz","25 grammes pour 1 repas (couscous, purée, riz)","Lundi et mardi soirs",25,"Aliments journaliers","Non","2021-04-05"]
["LSMJ01-1",1,"LSMJ","Aliments journaliers légumes mercredi jeudi","LSMJ01","Macédoine de légumes","1 boîte pour 2 repas","Mercredi et jeudi soirs",0.5,"Aliments journaliers","Non","2021-04-05"]
["LSMJ02-2",2,"LSMJ","Aliments journaliers légumes mercredi jeudi","LSMJ02","Petits pois","1 boîte pour 2 repas","Mercredi et jeudi soirs",0.5,"Aliments journaliers","Non","2021-04-05"]
["LSMJ03-3",3,"LSMJ","Aliments journaliers légumes mercredi jeudi","LSMJ03","Petits pois et jeunes carottes","1 boîte pour 2 repas","Mercredi et jeudi soirs",0.5,"Aliments journaliers","Non","2021-04-05"]
["LSMJ04-4",4,"LSMJ","Aliments journaliers légumes mercredi jeudi","LSMJ04","Ratatouille","1 boîte pour 2 repas","Mercredi et jeudi soirs",0.5,"Aliments journaliers","Non","2021-04-05"]
["LSMJ05-5",5,"LSMJ","Aliments journaliers légumes mercredi jeudi","LSMJ05","Raviolis","1 boîte pour 2 repas","Lundi et mardi soirs",0.5,"Aliments journaliers","Non","2021-04-06"]
["LSMJ06-6",6,"LSMJ","Aliments journaliers légumes mercredi jeudi","LSMJ06","Tomates pelées","1 boîte pour 2 repas","Mercredi et jeudi soirs",0.5,"Aliments journaliers","Non","2021-04-08"]
["LSV01-1",1,"LSV","Aliments journaliers légumes vendredi","LSV01","Asperges","1 bocal pour 1 repas (asperges)","Vendredi soir",1,"Aliments journaliers","Non","2021-04-08"]
["LSV02-2",2,"LSV","Aliments journaliers légumes vendredi","LSV02","Avocat","Unité : 1 pour 1 repas","Vendredi soir",1,"Aliments journaliers","Non","2021-04-08"]
["LSV03-3",3,"LSV","Aliments journaliers légumes vendredi","LSV03","Betterave rouge","Unité : 1 pour 1 repas","Vendredi soir",1,"Aliments journaliers","Non","2021-04-08"]
["LSV04-4",4,"LSV","Aliments journaliers légumes vendredi","LSV04","Carottes","Unité : 2 pour 1 repas (carottes, tomates)","Vendredi soir",2,"Aliments journaliers","Non","2021-04-08"]
["LSV05-5",5,"LSV","Aliments journaliers légumes vendredi","LSV05","Céleri","Unité : 1 branche par repas (céleri)","Vendredi soir",1,"Aliments journaliers","Non","2021-04-08"]
["LSV06-6",6,"LSV","Aliments journaliers légumes vendredi","LSV06","Champignons","1 boîte pour 1 repas","Vendredi soir",1,"Aliments journaliers","Non","2021-04-08"]
["LSV07-7",7,"LSV","Aliments journaliers légumes vendredi","LSV07","Concombre","Unité : 1 pour 1 repas","Vendredi soir",1,"Aliments journaliers","Non","2021-04-08"]
["LSV08-8",8,"LSV","Aliments journaliers légumes vendredi","LSV08","Radis","1 botte ou 1 sachet pour 1 repas (radis)","Vendredi soir",1,"Aliments journaliers","Non","2021-04-08"]
["LSV09-9",9,"LSV","Aliments journaliers légumes vendredi","LSV09","Salade","Unité : 1 tête par repas (ou pack de 3 têtes : salade","Vendredi soir",1,"Aliments journaliers","Non","2021-04-08"]
["LSV10-10",10,"LSV","Aliments journaliers légumes vendredi","LSV10","Salsifis","1 boîte pour 1 repas","Vendredi soir",1,"Aliments journaliers","Non","2021-04-08"]
["LSV11-11",11,"LSV","Aliments journaliers légumes vendredi","LSV11","Tomates","Unité : 2 pour 1 repas (carottes, tomates)","Vendredi soir",2,"Aliments journaliers","Non","2021-04-08"]
["LWED01-1",1,"LWED","Aliments weekend légumes dimanche","LWED01","Asperges","1 bocal pour 1 repas (asperges)","Dimanche soir",1,"Aliments weekend","Non","2021-04-08"]
["LWED02-2",2,"LWED","Aliments weekend légumes dimanche","LWED02","Chips","1 sachet pour 2 repas","Dimanche midi et soir",1,"Aliments weekend","Non","2021-04-08"]
["LWED03-3",3,"LWED","Aliments weekend légumes dimanche","LWED03","Frites","20 frites pour 1 repas","Dimanche midi",20,"Aliments weekend","Non","2021-04-08"]
["LWED04-4",4,"LWED","Aliments weekend légumes dimanche","LWED04","Haricots verts","1 boîte pour 2 repas","Dimanche midi et soir",1,"Aliments weekend","Non","2021-04-08"]
["LWES01-1",1,"LWES","Aliments weekend légumes samedi","LWES01","Pâtes à la sauce tomates","5 cuillères pour 1 repas (pâtes)","Samedi midi et soir",10,"Aliments weekend","Non","2021-04-08"]
["LWES02-2",2,"LWES","Aliments weekend légumes samedi","LWES02","Pâtes au beurre","5 cuillères pour 1 repas (pâtes)","Samedi midi et soir",10,"Aliments weekend","Non","2021-04-08"]
["LWES03-3",3,"LWES","Aliments weekend légumes samedi","LWES03","Pâtes au fromage râpé","5 cuillères pour 1 repas (pâtes)","Samedi midi et soir",10,"Aliments weekend","Non","2021-04-08"]
["VMR01-1",1,"VMR","Aliments midi retraite viandes","VMR01","Rôti d'agneau","1 morceau de 500 grammes pour 5 repas (VMR)","Lundi à vendredi midis",100,"Aliments midi retraite","Non","2021-04-08"]
["VMR02-2",2,"VMR","Aliments midi retraite viandes","VMR02","Rôti de bœuf","1 morceau de 500 grammes pour 5 repas (VMR)","Lundi à vendredi midis",100,"Aliments midi retraite","Non","2021-04-08"]
["VMR03-3",3,"VMR","Aliments midi retraite viandes","VMR03","Rôti de cheval","1 morceau de 500 grammes pour 5 repas (VMR)","Lundi à vendredi midis",100,"Aliments midi retraite","Non","2021-04-08"]
["VMR04-4",4,"VMR","Aliments midi retraite viandes","VMR04","Rôti de porc","1 morceau de 500 grammes pour 5 repas (VMR)","Lundi à vendredi midis",100,"Aliments midi retraite","Non","2021-04-08"]
["VMR05-5",5,"VMR","Aliments midi retraite viandes","VMR05","Rôti de veau","1 morceau de 500 grammes pour 5 repas (VMR)","Lundi à vendredi midis",100,"Aliments midi retraite","Non","2021-04-08"]
["VMWE01-1",1,"VMWE","Aliments weekend viandes","VMWE01","Agneau","1 tranche pour 1 repas VMWE)","Samedi et dimanche midis",1,"Aliments weekend","Non","2021-04-08"]
["VMWE02-2",2,"VMWE","Aliments weekend viandes","VMWE02","Bœuf","1 tranche pour 1 repas VMWE)","Samedi et dimanche midis",1,"Aliments weekend","Non","2021-04-08"]
["VMWE03-3",3,"VMWE","Aliments weekend viandes","VMWE03","Cheval","1 tranche pour 1 repas VMWE)","Samedi et dimanche midis",1,"Aliments weekend","Non","2021-04-08"]
["VMWE04-4",4,"VMWE","Aliments weekend viandes","VMWE04","Dinde","1 tranche pour 1 repas VMWE)","Samedi et dimanche midis",1,"Aliments weekend","Non","2021-04-08"]
["VMWE05-5",5,"VMWE","Aliments weekend viandes","VMWE05","Poisson","Unité : 1 pour 1 repas","Samedi et dimanche midis",1,"Aliments weekend","Non","2021-04-08"]
["VMWE06-6",6,"VMWE","Aliments weekend viandes","VMWE06","Porc","1 tranche pour 1 repas VMWE)","Samedi et dimanche midis",1,"Aliments weekend","Non","2021-04-08"]
["VMWE07-7",7,"VMWE","Aliments weekend viandes","VMWE07","Veau","1 tranche pour 1 repas VMWE)","Samedi et dimanche midis",1,"Aliments weekend","Non","2021-04-08"]
["VS01-1",1,"VS","Aliments journaliers viandes","VS01","Bifteck haché de bœuf","1 paquet pour 2 repas","Lundi à dimanche soirs",1,"Aliments journaliers","Non","2021-04-08"]
["VS02-2",2,"VS","Aliments journaliers viandes","VS02","Bifteck haché de cheval","125 grammes pour 1 repas (bifteck haché de cheval)","Lundi à dimanche soirs",125,"Aliments journaliers","Non","2021-04-08"]
["VS03-3",3,"VS","Aliments journaliers viandes","VS03","Bifteck haché de veau","1 paquet pour 2 repas","Lundi à dimanche soirs",1,"Aliments journaliers","Non","2021-04-08"]
["VS04-4",4,"VS","Aliments journaliers viandes","VS04","Bouch2e à la reine","1 boîte pour 2 repas","Lundi à dimanche soirs",1,"Aliments journaliers","Non","2021-04-08"]
["VS05-5",5,"VS","Aliments journaliers viandes","VS05","Boudin","Unité : 1 pour 2 repas","Lundi à dimanche soirs",0.5,"Aliments journaliers","Non","2021-04-08"]
["VS06-6",6,"VS","Aliments journaliers viandes","VS06","Cervelas","Unité : 1 pour 2 repas","Lundi à dimanche soirs",0.5,"Aliments journaliers","Non","2021-04-08"]
["VS07-7",7,"VS","Aliments journaliers viandes","VS07","Cœur","1 paquet pour 2 repas","Lundi à dimanche soirs",1,"Aliments journaliers","Non","2021-04-08"]
["VS08-8",8,"VS","Aliments journaliers viandes","VS08","Croque-monsieur","1 paquet pour 2 repas","Lundi à dimanche soirs",1,"Aliments journaliers","Non","2021-04-08"]
["VS09-9",9,"VS","Aliments journaliers viandes","VS09","Foie","1 paquet pour 2 repas","Lundi à dimanche soirs",1,"Aliments journaliers","Non","2021-04-08"]
["VS10-10",10,"VS","Aliments journaliers viandes","VS10","Fromage de tête","1 tranche pour 2 repas (fromage de tête, tête persillée)","Lundi à dimanche soirs",0.5,"Aliments journaliers","Non","2021-04-08"]
["VS11-11",11,"VS","Aliments journaliers viandes","VS11","Jambon","1 paquet pour 2 repas","Lundi à dimanche soirs",0.5,"Aliments journaliers","Non","2021-04-08"]
["VS12-12",12,"VS","Aliments journaliers viandes","VS12","Jambonneau","1 paquet pour 2 repas","Lundi à dimanche soirs",0.5,"Aliments journaliers","Non","2021-04-08"]
["VS13-13",13,"VS","Aliments journaliers viandes","VS13","Mortadelle","1 paquet pour 2 repas","Lundi à dimanche soirs",0.5,"Aliments journaliers","Non","2021-04-08"]
["VS14-14",14,"VS","Aliments journaliers viandes","VS14","Œufs","1 boîte de 6 œufs (3 œufs par repas)","Lundi à dimanche soirs",3,"Aliments journaliers","Non","2021-04-08"]
["VS15-15",15,"VS","Aliments journaliers viandes","VS15","Pizza","1 paquet pour 2 repas","Lundi à dimanche soirs",0.5,"Aliments journaliers","Non","2021-04-08"]
["VS16-16",16,"VS","Aliments journaliers viandes","VS16","Poisson","Unité : 1 pour 1 repas","Lundi à dimanche soirs",1,"Aliments journaliers","Non","2021-04-08"]
["VS17-17",17,"VS","Aliments journaliers viandes","VS17","Quiche lorraine","1 paquet pour 2 repas","Lundi à dimanche soirs",1,"Aliments journaliers","Non","2021-04-08"]
["VS18-18",18,"VS","Aliments journaliers viandes","VS18","Roulade à la pistache","3 tranches pour 1 repas","Lundi à dimanche soirs",3,"Aliments journaliers","Non","2021-04-08"]
["VS19-19",19,"VS","Aliments journaliers viandes","VS19","Roulé au fromage","1 boîte pour 2 repas","Lundi à dimanche soirs",1,"Aliments journaliers","Non","2021-04-08"]
["VS20-20",20,"VS","Aliments journaliers viandes","VS20","Salami","1 paquet pour 2 repas","Lundi à dimanche soirs",0.5,"Aliments journaliers","Non","2021-04-08"]
["VS21-21",21,"VS","Aliments journaliers viandes","VS21","Saucisses","1 paquet pour 2 repas","Lundi à dimanche soirs",0.5,"Aliments journaliers","Non","2021-04-08"]
["VS22-22",22,"VS","Aliments journaliers viandes","VS22","Saucisson","1 paquet de 30 tranches Saint Azay. 5 tranches par repas","Lundi à dimanche soirs",5,"Aliments journaliers","Non","2021-04-08"]
["VS23-23",23,"VS","Aliments journaliers viandes","VS23","Tête persillée","1 tranche pour 2 repas (fromage de tête, tête persillée)","Lundi à dimanche soirs",0.5,"Aliments journaliers","Non","2021-04-08"]
["VS24-24",24,"VS","Aliments journaliers viandes","VS24","Tête roulée","3 tranches pour 1 repas","Lundi à dimanche soirs",3,"Aliments journaliers","Non","2021-04-08"]
["VS25-25",25,"VS","Aliments journaliers viandes","VS25","Thon","1 boîte pour 1 repas","Lundi à dimanche soirs",1,"Aliments journaliers","Non","2021-04-08"]
["VS26-26",26,"VS","Aliments journaliers viandes","VS26","Viande cassoulet","1 boîte pour 2 repas","Lundi et mardi soirs",0.5,"Aliments journaliers","Non","2021-04-08"]
["VS27-27",27,"VS","Aliments journaliers viandes","VS27","Viande choucroute","1 boîte pour 2 repas","Lundi et mardi soirs",0.5,"Aliments journaliers","Non","2021-04-08"]
["VS28-28",28,"VS","Aliments journaliers viandes","VS28","Viande paella","1 boîte pour 2 repas","Lundi et mardi soirs",0.5,"Aliments journaliers","Non","2021-04-08"]

{"sheet":"Modification produits","index":4,"n_rows":13,"n_cols":5,"rows_kept":13,"cut":false,"hidden":false,"merged":[]}
["Modification produits",null,null,"Légende des couleurs"]
[]
["Numéro création",2,null,null,"À renseigner"]
["Catégorie","DWE",null,null,"Formule, ne pas modifier"]
["Nature","Aliments weekend desserts"]
["Code produit","DWE02"]
["Nom produit",{"$f":"IFERROR(VLOOKUP(CelMPCodeProduit,INDIRECT(\"Tab\"&CelMPCatégorie),2,FALSE),\"\")","v":"Autres fruits"}]
["Conditionnement","Unité : 2 à 4 par repas"]
["Jour","Samedi et dimanche midis et soirs"]
["Quantité par jour",8]
["Destination",{"$f":"IFERROR(VLOOKUP(CelMPCatégorie,TabCA[],2,FALSE),\"\")","v":"Aliments weekend"}]
["À modifier","Non"]
["Date modification","2021-04-12"]

{"sheet":"Référentiels menus","index":5,"n_rows":13,"n_cols":2,"rows_kept":13,"cut":false,"hidden":false,"merged":[]}
["Initiales catégorie menus","Nom catégorie menus"]
["DMR","Dessert midi retraite"]
["DS","Dessert soir"]
["DWE","Desserts weekend"]
["LMR","Légumes midi retraite"]
["LSLM","Légumes soir lundi mardi"]
["LSMJ","Légumes soirs mercredi jeudi"]
["LSV","Légume soir vendredi"]
["LWED","Légumes weekend dimanche"]
["LWES","Légumes weekend samedi"]
["VMR","Viandes midi retraite"]
["VMWE","Viandes midi weekend"]
["VS","Viandes soirs"]

{"sheet":"Accueil menus","index":6,"n_rows":5,"n_cols":3,"rows_kept":5,"cut":false,"hidden":false,"merged":[]}
[2021]
[]
[]
[]
["01","Novembre",{"$f":"$A$1","v":2021}]

{"sheet":"Saisie MMR","index":7,"n_rows":14,"n_cols":5,"rows_kept":14,"cut":false,"hidden":false,"merged":[[9,0,9,1]]}
["Saisie menus midi retraite."]
[]
["Date du menu","2021-11-01"]
["Code férié",{"$f":"IFERROR(INDEX(Codeférié,MATCH($B$5,NomFérié,0)),\"\")","v":"CF11"},null,null,"À renseigner"]
["Nom férié",{"$f":"IF(COUNTIF('Jours féries'!$B$3:$B$15,$B$3)=0,\"\",INDEX('Jours féries'!$A$3:$A$15,MATCH($B$3,'Jours féries'!$B$3:$B$15,0)))","v":"Toussaint"},null,null,"Formule, ne pas modifier"]
["Mois concerné","Novembre"]
["À modifier","Oui"]
["Mois concerné","Novembre"]
[]
["Légume"]
["Initiales catégorie menus","LMR"]
["Nom catégorie menus",{"$f":"IFERROR(VLOOKUP(CelSMMRICML,TabCatégoriesMenus[],2,FALSE),\"\")","v":"Légumes midi retraite"}]
["Code légume"]
["Nom légume"]

{"sheet":"Menus MMR","index":8,"n_rows":0,"n_cols":0,"rows_kept":0,"cut":false,"hidden":false,"merged":[]}

{"sheet":"Modifier MMR","index":9,"n_rows":0,"n_cols":0,"rows_kept":0,"cut":false,"hidden":false,"merged":[]}

{"sheet":"Saisie MJ","index":10,"n_rows":0,"n_cols":0,"rows_kept":0,"cut":false,"hidden":false,"merged":[]}

{"sheet":"Menus MJ","index":11,"n_rows":0,"n_cols":0,"rows_kept":0,"cut":false,"hidden":false,"merged":[]}

{"sheet":"Modifier MJ","index":12,"n_rows":0,"n_cols":0,"rows_kept":0,"cut":false,"hidden":false,"merged":[]}

{"sheet":"Saisie menus VMWE","index":13,"n_rows":0,"n_cols":0,"rows_kept":0,"cut":false,"hidden":false,"merged":[]}

{"sheet":"Menus VMWE","index":14,"n_rows":0,"n_cols":0,"rows_kept":0,"cut":false,"hidden":false,"merged":[]}

{"sheet":"Modifier VMWE","index":15,"n_rows":0,"n_cols":0,"rows_kept":0,"cut":false,"hidden":false,"merged":[]}

{"sheet":"BD menus","index":16,"n_rows":0,"n_cols":0,"rows_kept":0,"cut":false,"hidden":false,"merged":[]}

{"sheet":"Quantités desserts","index":17,"n_rows":0,"n_cols":0,"rows_kept":0,"cut":false,"hidden":false,"merged":[]}

{"sheet":"Quantités légumes","index":18,"n_rows":0,"n_cols":0,"rows_kept":0,"cut":false,"hidden":false,"merged":[]}

{"sheet":"Quantités viandes","index":19,"n_rows":0,"n_cols":0,"rows_kept":0,"cut":false,"hidden":false,"merged":[]}

{"sheet":"Jours féries","index":20,"n_rows":18,"n_cols":2,"rows_kept":18,"cut":false,"hidden":false,"merged":[]}
[]
["Jours fériés et fêtes",{"$f":"'Accueil menus'!$A$1","v":2021}]
["Jour de l'an",{"$f":"DATE(B2,1,1)","v":"2021-01-01"}]
["Pâques",{"$f":"DATE(YEAR(B3),3,29.56+0.979*MOD(204-11*MOD(YEAR(B3),19),30)-WEEKDAY(DATE(YEAR(B3),3,28.56+0.979*MOD(204-11*MOD(YEAR(B3),19),30))))","v":"2021-04-04"}]
["Lundi de pâques",{"$f":"B4+1","v":"2021-04-05"}]
["Fête du travail",{"$f":"DATE(B2,5,1)","v":"2021-05-01"}]
["Victoire 1945",{"$f":"DATE(B2,5,8)","v":"2021-05-08"}]
["Jeudi de l'Ascension",{"$f":"B5+38","v":"2021-05-13"}]
["Pentecôte",{"$f":"B4+49","v":"2021-05-23"}]
["Lundi de Pentecôte",{"$f":"B9+1","v":"2021-05-24"}]
["Fête nationale",{"$f":"DATE(B2,7,14)","v":"2021-07-14"}]
["Assomption",{"$f":"DATE(B2,8,15)","v":"2021-08-15"}]
["Toussaint",{"$f":"DATE(B2,11,1)","v":"2021-11-01"}]
["Armistice 1918",{"$f":"DATE(B2,11,11)","v":"2021-11-11"}]
["Noël",{"$f":"DATE(B2,12,25)","v":"2021-12-25"}]
[]
[null,"Samedi"]
[null,"Dimanche"]